fUST/lending_fUST_20251110
["ID","MTS","AMOUNT","RATE_DAILY","PERIOD"]
[393528296,1762769432111,-220.332627,0.00022862,10]
[393528298,1762769432121,-40.80911347,0.00022895,2]
[393528435,1762769437941,-160.0,0.00022891,2]
[393528436,1762769437951,-259.19088653,0.00022895,2]
[393528437,1762769437960,-574.97911397,0.00022896,2]
[393528438,1762769437971,-53.02088603,0.00022896,2]
[393528440,1762769437980,-2167.0,0.00022896,2]
[393528442,1762769437990,-592.6515946,0.00023078,2]
[393528444,1762769437999,-592.6515946,0.00023078,2]
[393528446,1762769438008,-592.6515946,0.000233,2]
[393528448,1762769438018,-175.7340495,0.00023368,2]
[393528449,1762769438029,-2640.63109628,0.00023681,2]
[393528450,1762769438040,-338.52,0.00023738,10]
[393528451,1762769438051,-701.95,0.00023738,10]
[393528452,1762769438062,-528.54,0.00023738,10]
[393528453,1762769438071,-344.57547416,0.00023747,2]
[393528454,1762769438082,-545.81146804,0.00023747,2]
[393528455,1762769438092,-648.85429068,0.00023747,2]
[393528456,1762769438102,-500.0,0.00023747,2]
[393528457,1762769438112,-879.59795151,0.00023748,2]
[393528482,1762769440099,-440.45,0.00023738,10]
[393528484,1762769440110,-624.75,0.00023748,2]
[393528667,1762770147472,166.0,0.0002404,120]
[393528749,1762770368078,5000.0,0.00032877,120]
[393528820,1762770509410,435.066767,0.00013699,2]
[393528829,1762770600377,1596.08,3.08e-05,120]
[393528863,1762770632074,-435.066767,0.00020187,2]
[393528864,1762770632085,-182.9389958,0.00020267,2]
[393528865,1762770632097,-515.0,0.00021981,2]
[393528866,1762770632106,-215.86801504,0.00022267,2]
[393528867,1762770632115,-91.82622216,0.00022356,2]
[393528868,1762770632127,-105.56177484,0.00022356,2]
[393528869,1762770632136,-190.296292,0.0002241,2]
[393528870,1762770632145,-515.0,0.00022635,2]
[393528871,1762770632156,-206.20309081,0.00022637,2]
[393528872,1762770632166,-168.0,0.00022657,2]
[393528873,1762770632175,-153.06,0.000227,2]
[393528874,1762770632183,-50000.0,0.00022734,2]
[393528875,1762770632192,-1200.0,0.00022734,2]
[393528876,1762770632202,-300.0,0.00022735,2]
[393528877,1762770632211,-300.0,0.00022735,2]
[393528878,1762770632221,-300.0,0.00022735,2]
[393528879,1762770632230,-300.0,0.00022735,2]
[393528880,1762770632240,-300.0,0.00022735,2]
[393528881,1762770632249,-500.0,0.00022736,2]
[393528882,1762770632258,-500.0,0.00022736,2]
[393528883,1762770632268,-500.0,0.00022736,2]
[393528884,1762770632278,-259.18315232,0.00022736,2]
[393528885,1762770632287,-500.0,0.00022736,2]
[393528886,1762770632296,-500.0,0.00022736,2]
[393528887,1762770632306,-457.30117312,0.00022736,2]
[393528888,1762770632315,-1200.0,0.00022736,2]
[393528889,1762770632325,-168.0,0.00022737,2]
[393528890,1762770632334,-500.0,0.00022773,2]
[393528891,1762770632344,-500.0,0.00022773,2]
[393528892,1762770632354,-389.85619046,0.00022773,2]
[393528893,1762770632363,-153.06,0.000228,2]
[393528894,1762770632373,-153.06,0.000228,2]
[393528895,1762770632382,-153.06,0.000228,2]
[393528896,1762770632391,-153.06,0.000228,2]
[393528897,1762770632400,-153.06,0.000228,2]
[393528898,1762770632411,-515.0,0.00022812,2]
[393528899,1762770632421,-197.387997,0.00022862,10]
[393528900,1762770632430,-411.37519729,0.00022873,2]
[393528901,1762770632440,-153.06,0.000229,2]
[393528902,1762770632451,-153.06,0.000229,2]
[393528903,1762770632460,-153.06,0.000229,2]
[393528904,1762770632469,-153.06,0.000229,2]
[393528905,1762770632479,-592.6515946,0.00022959,2]
[393528906,1762770632488,-592.8099389,0.00022959,2]
[393528907,1762770632498,-592.6515946,0.00022978,2]
[393528908,1762770632508,-591.4054182,0.00022978,2]
[393528909,1762770632518,-151.0,0.00022991,7]
[393528910,1762770632528,-151.0,0.00022991,7]
[393528911,1762770632537,-151.0,0.00022991,7]
[393528912,1762770632547,-151.0,0.00022991,7]
[393528913,1762770632556,-151.0,0.00022991,7]
[393528914,1762770632564,-151.0,0.00022991,7]
[393528915,1762770632573,-161.537489,0.00022991,7]
[393528916,1762770632582,-151.0,0.00022991,7]
[393528917,1762770632592,-151.0,0.00022991,2]
[393528918,1762770632603,-151.0,0.00022991,7]
[393528919,1762770632612,-151.0,0.00022991,7]
[393528920,1762770632621,-151.0,0.00022991,7]
[393528921,1762770632631,-151.0,0.00022991,7]
[393528922,1762770632642,-151.0,0.00022991,7]
[393528923,1762770632652,-151.0,0.00022991,7]
[393528924,1762770632663,-151.0,0.00022991,7]
[393528925,1762770632672,-151.0,0.00022991,7]
[393528926,1762770632682,-151.0,0.00022991,7]
[393528927,1762770632692,-151.0,0.00022991,7]
[393528928,1762770632702,-151.0,0.00022991,7]
[393528929,1762770632712,-693.53001,0.00022991,7]
[393528930,1762770632721,-693.53001,0.00022991,7]
[393528931,1762770632731,-151.0,0.00022991,7]
[393528932,1762770632740,-693.53001,0.00022991,7]
[393528933,1762770632749,-151.0,0.00022991,7]
[393528934,1762770632758,-151.0,0.00022991,7]
[393528935,1762770632767,-693.53001,0.00022991,7]
[393528936,1762770632776,-151.0,0.00022991,7]
[393528937,1762770632785,-151.0,0.00022991,7]
[393528938,1762770632794,-151.0,0.00022991,7]
[393528939,1762770632804,-151.0,0.00022991,7]
[393528940,1762770632813,-151.0,0.00022991,7]
[393528941,1762770632823,-151.0,0.00022991,7]
[393528942,1762770632831,-261.199281,0.00022991,7]
[393528943,1762770632841,-151.0,0.00022991,7]
[393528944,1762770632850,-261.199281,0.00022991,7]
[393528945,1762770632860,-151.0,0.00022991,7]
[393528946,1762770632869,-152.396996,0.00022991,7]
[393528947,1762770632879,-261.199281,0.00022991,7]
[393528948,1762770632888,-261.199281,0.00022991,7]
[393528949,1762770632897,-261.199281,0.00022991,7]
[393528950,1762770632907,-151.0,0.00022991,7]
[393528951,1762770632916,-261.199281,0.00022991,7]
[393528952,1762770632925,-151.0,0.00022991,7]
[393528953,1762770632934,-261.199281,0.00022991,7]
[393528954,1762770632944,-261.199281,0.00022991,7]
[393528955,1762770632956,-151.0,0.00022991,7]
[393528956,1762770632965,-151.0,0.00022991,7]
[393528957,1762770632975,-151.0,0.00022991,7]
[393528958,1762770632984,-151.0,0.00022991,7]
[393528959,1762770632993,-151.0,0.00022991,7]
[393528960,1762770633002,-151.0,0.00022991,7]
[393528961,1762770633013,-151.0,0.00022991,7]
[393528962,1762770633023,-151.0,0.00022991,7]
[393528963,1762770633034,-151.0,0.00022991,7]
[393528964,1762770633043,-151.0,0.00022991,7]
[393528965,1762770633053,-151.0,0.00022991,7]
[393528966,1762770633063,-151.0,0.00022991,7]
[393528967,1762770633072,-151.0,0.00022991,7]
[393528968,1762770633082,-151.0,0.00022991,7]
[393528969,1762770633093,-151.0,0.00022991,7]
[393528970,1762770633102,-162.0,0.00022991,7]
[393528971,1762770633111,-658.179425,0.00022991,7]
[393528972,1762770633121,-658.179425,0.00022991,7]
[393528973,1762770633130,-658.179425,0.00022991,7]
[393528974,1762770633139,-658.179425,0.00022991,7]
[393528975,1762770633148,-658.179425,0.00022991,7]
[393528976,1762770633158,-151.0,0.00022991,7]
[393528977,1762770633167,-658.179425,0.00022991,7]
[393528978,1762770633176,-151.0,0.00022991,7]
[393528979,1762770633185,-151.0,0.00022991,7]
[393528980,1762770633195,-658.179425,0.00022991,7]
[393528981,1762770633205,-658.179425,0.00022991,7]
[393528982,1762770633214,-658.179425,0.00022991,7]
[393528983,1762770633224,-151.0,0.00022991,7]
[393528984,1762770633234,-151.0,0.00022991,7]
[393528985,1762770633243,-658.179425,0.00022991,7]
[393528986,1762770633252,-658.179425,0.00022991,7]
[393528987,1762770633262,-151.0,0.00022991,7]
[393528988,1762770633271,-658.179425,0.00022991,7]
[393528989,1762770633281,-151.0,0.00022991,7]
[393528990,1762770633290,-151.0,0.00022991,7]
[393528991,1762770633300,-292.975462,0.00022991,7]
[393528992,1762770633309,-151.0,0.00022991,7]
[393528993,1762770633319,-151.0,0.00022991,7]
[393528994,1762770633328,-151.0,0.00022991,7]
[393528995,1762770633338,-151.0,0.00022991,7]
[393528996,1762770633348,-151.0,0.00022991,7]
[393528997,1762770633357,-151.0,0.00022991,7]
[393528998,1762770633367,-151.0,0.00022991,7]
[393528999,1762770633377,-151.0,0.00022991,7]
[393529000,1762770633387,-151.0,0.00022991,7]
[393529001,1762770633398,-324.91140538,0.00022991,2]
[393529002,1762770633408,-197.387997,0.00022992,2]
[393529003,1762770633417,-153.06,0.00023,2]
[393529004,1762770633427,-153.06,0.00023,2]
[393529005,1762770633437,-153.06,0.00023,2]
[393529006,1762770633446,-153.06,0.00023,2]
[393529007,1762770633456,-312.0,0.00023032,2]
[393529008,1762770633466,-693.53001,0.00023032,7]
[393529009,1762770633475,-693.53001,0.00023032,7]
[393529010,1762770633484,-151.0,0.00023032,7]
[393529011,1762770633494,-693.53001,0.00023032,7]
[393529012,1762770633504,-151.0,0.00023032,7]
[393529013,1762770633514,-235.98413,0.00023032,7]
[393529014,1762770633523,-693.53001,0.00023032,7]
[393529015,1762770633533,-151.0,0.00023032,7]
[393529016,1762770633542,-151.0,0.00023032,7]
[393529017,1762770633552,-151.0,0.00023032,7]
[393529018,1762770633562,-151.0,0.00023032,7]
[393529019,1762770633571,-151.0,0.00023032,7]
[393529020,1762770633582,-240.688835,0.00023032,7]
[393529021,1762770633591,-151.0,0.00023032,7]
[393529022,1762770633601,-658.179425,0.00023032,7]
[393529023,1762770633611,-658.179425,0.00023032,7]
[393529024,1762770633621,-151.0,0.00023032,7]
[393529025,1762770633631,-658.179425,0.00023032,7]
[393529026,1762770633641,-151.0,0.00023032,7]
[393529027,1762770633650,-383.91422756,0.00023032,7]
[393529033,1762770638103,-500.0,0.00022736,2]
[393529034,1762770638159,-625.36181593,0.00022736,2]
[393529035,1762770638171,-22.73582827,0.00022736,2]
[393529036,1762770638181,-151.91970819,0.00022991,7]
[393529037,1762770638191,-274.26519744,0.00023032,7]
[393529038,1762770638201,-151.0,0.00023032,7]
[393529039,1762770638211,-159.757662,0.00023032,7]
[393529040,1762770638222,-160.0,0.00023058,2]
[393529041,1762770638231,-261.199281,0.00023061,7]
[393529042,1762770638241,-261.199281,0.00023061,7]
[393529043,1762770638251,-261.199281,0.00023061,7]
[393529044,1762770638260,-261.199281,0.00023061,7]
[393529045,1762770638270,-151.0,0.00023061,7]
[393529046,1762770638280,-171.660328,0.00023061,7]
[393529047,1762770638290,-151.0,0.00023061,7]
[393529048,1762770638300,-151.0,0.00023061,7]
[393529049,1762770638310,-151.0,0.00023061,7]
[393529050,1762770638320,-312.2888789,0.00023062,2]
[393529051,1762770638330,-634.21722703,0.00023073,2]
[393529052,1762770638344,-151.0,0.00023074,7]
[393529053,1762770638354,-151.0,0.00023074,7]
[393529054,1762770638363,-151.0,0.00023074,7]
[393529055,1762770638373,-151.0,0.00023074,7]
[393529056,1762770638383,-151.0,0.00023074,7]
[393529057,1762770638393,-151.0,0.00023074,7]
[393529058,1762770638402,-239.958412,0.00023074,7]
[393529059,1762770638411,-152.692313,0.00023074,7]
[393529060,1762770638420,-151.0,0.00023074,7]
[393529061,1762770638430,-151.0,0.00023074,7]
[393529062,1762770638440,-151.0,0.00023074,7]
[393529063,1762770638449,-151.0,0.00023074,7]
[393529064,1762770638459,-295.568498,0.00023074,7]
[393529065,1762770638468,-151.0,0.00023074,7]
[393529066,1762770638478,-324.13882314,0.00023074,7]
[393529067,1762770638490,-334.04060186,0.00023074,7]
[393529068,1762770638500,-658.179425,0.00023074,7]
[393529069,1762770638510,-116.36247465,0.00023074,7]
[393529070,1762770638524,-34.63752535,0.00023074,7]
[393529071,1762770638535,-658.179425,0.00023074,7]
[393529072,1762770638545,-151.0,0.00023074,7]
[393529073,1762770638555,-107.18928745,0.00023074,7]
[393529074,1762770638571,-550.99014555,0.00023074,7]
[393529075,1762770638581,-151.0,0.00023074,7]
[393529076,1762770638590,-129.90059994,0.00023074,2]
[393529077,1762770638602,-2037.09940006,0.00023074,2]
[393529078,1762770638611,-162.62674898,0.00023074,2]
[393529089,1762770640134,200.10443907,0.000328,120]
[393529092,1762770640360,-168.53277896,0.00019058,2]
[393529095,1762770640370,-2615.66890732,0.00022634,2]
[393529096,1762770640380,-168.53277896,0.00022639,2]
[393529099,1762770640390,-500.0,0.00022736,2]
[393529101,1762770640401,-500.0,0.00022736,2]
[393529103,1762770640411,-500.0,0.00022859,2]
[393529105,1762770640422,-500.0,0.0002299,2]
[393529107,1762770640432,-465.37325102,0.00023074,2]
[393529109,1762770640441,-413.0,0.00023074,2]
[393529111,1762770640451,-634.21722703,0.00023088,2]
[393529113,1762770640461,-261.199281,0.000231,7]
[393529115,1762770640470,-261.199281,0.000231,7]
[393529116,1762770640479,-261.199281,0.000231,7]
[393529117,1762770640489,-261.199281,0.000231,7]
[393529119,1762770640498,-151.0,0.000231,7]
[393529122,1762770640508,-151.0,0.000231,7]
[393529124,1762770640517,-179.868617,0.000231,7]
[393529126,1762770640527,-153.06,0.000231,2]
[393529128,1762770640536,-153.06,0.000231,2]
[393529130,1762770640545,-634.21722703,0.00023102,2]
[393529132,1762770640555,-634.21722703,0.00023117,2]
[393529134,1762770640565,-500.0,0.00023129,2]
[393529136,1762770640575,-634.21722703,0.00023131,2]
[393529138,1762770640585,-1760.42073086,0.00023131,2]
[393529140,1762770640594,-500.0,0.00023172,2]
[393529142,1762770640605,-151.0,0.00023173,7]
[393529144,1762770640615,-151.0,0.00023173,7]
[393529147,1762770640626,-151.0,0.00023173,7]
[393529149,1762770640636,-151.0,0.00023173,7]
[393529151,1762770640646,-151.0,0.00023173,7]
[393529153,1762770640656,-151.0,0.00023173,7]
[393529155,1762770640667,-151.0,0.00023173,7]
[393529157,1762770640676,-151.0,0.00023173,7]
[393529159,1762770640687,-151.0,0.00023173,7]
[393529161,1762770640696,-212.417459,0.00023173,7]
[393529163,1762770640706,-151.0,0.00023173,7]
[393529165,1762770640716,-151.0,0.00023173,7]
[393529167,1762770640727,-151.0,0.00023173,7]
[393529169,1762770640737,-151.0,0.00023173,7]
[393529171,1762770640747,-151.0,0.00023173,7]
[393529173,1762770640756,-151.0,0.00023173,7]
[393529176,1762770640766,-693.53001,0.00023173,7]
[393529178,1762770640775,-693.53001,0.00023173,7]
[393529180,1762770640786,-693.53001,0.00023173,7]
[393529182,1762770640795,-693.53001,0.00023173,7]
[393529184,1762770640805,-151.0,0.00023173,7]
[393529186,1762770640815,-151.0,0.00023173,7]
[393529188,1762770640825,-693.53001,0.00023173,7]
[393529190,1762770640836,-693.53001,0.00023173,7]
[393529192,1762770640846,-151.0,0.00023173,7]
[393529193,1762770640856,-151.0,0.00023173,7]
[393529194,1762770640867,-693.53001,0.00023173,7]
[393529195,1762770640876,-693.53001,0.00023173,7]
[393529196,1762770640885,-279.872598,0.00023173,7]
[393529197,1762770640895,-151.0,0.00023173,7]
[393529198,1762770640905,-151.0,0.00023173,7]
[393529199,1762770640915,-151.0,0.00023173,7]
[393529200,1762770640925,-151.0,0.00023173,7]
[393529201,1762770640934,-151.0,0.00023173,7]
[393529202,1762770640943,-151.0,0.00023173,7]
[393529203,1762770640953,-151.0,0.00023173,7]
[393529204,1762770640962,-151.0,0.00023173,7]
[393529205,1762770640971,-261.199281,0.00023173,7]
[393529206,1762770640980,-261.199281,0.00023173,7]
[393529207,1762770640991,-261.199281,0.00023173,7]
[393529208,1762770641000,-261.19927495,0.00023173,7]
[393529209,1762770641010,-151.0,0.00023173,7]
[393529210,1762770641023,-156.9486802,0.00023173,7]
[393529211,1762770641033,-170.517299,0.00023178,7]
[393529212,1762770641042,-312.0,0.00023179,2]
[393529213,1762770641052,-151.0,0.00023179,7]
[393529215,1762770641063,-151.0,0.00023179,7]
[393529217,1762770641073,-151.0,0.00023179,7]
[393529219,1762770641083,-151.0,0.00023179,7]
[393529221,1762770641094,-151.0,0.00023179,7]
[393529223,1762770641103,-151.0,0.00023179,7]
[393529225,1762770641113,-151.0,0.00023179,7]
[393529227,1762770641123,-151.0,0.00023179,7]
[393529229,1762770641134,-170.989405,0.00023179,7]
[393529231,1762770641143,-151.0,0.00023179,7]
[393529233,1762770641152,-151.0,0.00023179,2]
[393529235,1762770641161,-151.0,0.00023179,2]
[393529237,1762770641173,-151.0,0.00023179,2]
[393529239,1762770641182,-500.0,0.00023179,2]
[393529241,1762770641191,-152.12052086,0.00023179,2]
[393529243,1762770641200,-152.63239838,0.00023179,2]
[393529245,1762770641209,-151.0,0.00023179,2]
[393529247,1762770641219,-151.0,0.00023179,2]
[393529249,1762770641229,-151.0,0.00023179,7]
[393529251,1762770641239,-151.0,0.00023179,7]
[393529253,1762770641249,-151.0,0.00023179,7]
[393529256,1762770641260,-693.53001,0.00023179,7]
[393529257,1762770641270,-693.53001,0.00023179,7]
[393529259,1762770641279,-151.0,0.00023179,7]
[393529261,1762770641289,-693.53001,0.00023179,7]
[393529264,1762770641298,-151.0,0.00023179,7]
[393529266,1762770641308,-693.53001732,0.00023179,7]
[393529268,1762770641317,-151.0,0.00023179,7]
[393529270,1762770641326,-151.0,0.00023179,7]
[393529271,1762770641336,-151.0,0.00023179,7]
[393529272,1762770641345,-367.04,0.00023219,10]
[393529273,1762770641354,-500.0,0.00023228,2]
[393529274,1762770641363,-66283.21697305,0.00023229,2]
[393529275,1762770641439,-4609.01328906,0.00023229,2]
[393529276,1762770641450,-331.33674966,0.00023229,2]
[393529277,1762770641461,-16640.66420366,0.00023229,2]
[393529279,1762770643407,-225.16416952,0.00022639,2]
[393529280,1762770643418,-307.0,0.00023225,2]
[393529281,1762770643428,-590.63240023,0.00023228,2]
[393529282,1762770643437,-565.35917781,0.00023229,2]
[393529283,1762770643569,-887.15701806,0.00023229,2]
[393529284,1762770643581,-2985.89233845,0.00023229,2]
[393529290,1762770646548,-167.599622,0.00022991,7]
[393529291,1762770646558,-167.599622,0.00022991,7]
[393529293,1762770646567,-153.59902826,0.00022991,7]
[393529295,1762770646577,-167.599622,0.00022991,7]
[393529296,1762770646586,-167.599622,0.00022991,7]
[393529297,1762770646595,-151.0,0.00022991,7]
[393529298,1762770646604,-151.0,0.00022991,7]
[393529299,1762770646613,-167.599622,0.00022991,7]
[393529300,1762770646623,-76.40286174,0.00023032,7]
[393529301,1762770646640,-91.19676026,0.00023032,7]
[393529302,1762770646649,-167.599622,0.00023032,7]
[393529303,1762770646658,-12428.1,0.00023219,3]
[393529304,1762770646668,-684697.36025025,0.00023229,2]
[393529305,1762770646677,-312.0,0.00023231,2]
[393529306,1762770646686,-500.0,0.00023234,2]
[393529307,1762770646696,-151.0,0.00023234,2]
[393529308,1762770646705,-152.48450682,0.00023234,2]
[393529309,1762770646713,-500.0,0.00023273,2]
[393529310,1762770646722,-500.0,0.00023273,2]
[393529311,1762770646730,-470.26798814,0.00023273,2]
[393529312,1762770646739,-500.0,0.00023273,2]
[393529313,1762770646748,-501.50374381,0.00023273,2]
[393529314,1762770646756,-500.0,0.00023273,2]
[393529315,1762770646766,-500.0,0.00023273,2]
[393529316,1762770646774,-500.0,0.00023273,2]
[393529317,1762770646784,-164.69928262,0.00023273,2]
[393529318,1762770646793,-500.0,0.00023273,2]
[393529319,1762770646802,-500.0,0.00023273,2]
[393529320,1762770646813,-561.26448007,0.00023273,2]
[393529321,1762770646822,-500.0,0.00023273,2]
[393529322,1762770646832,-500.0,0.00023273,2]
[393529323,1762770646841,-500.0,0.00023273,2]
[393529324,1762770646854,-520.42836628,0.00023273,2]
[393529325,1762770646863,-312.0,0.0002328,2]
[393529326,1762770646872,-500.0,0.00023289,2]
[393529327,1762770646881,-287.9236484,0.00023289,2]
[393529328,1762770646890,-151.0,0.00023319,7]
[393529329,1762770646900,-151.860136,0.00023319,7]
[393529330,1762770646910,-151.0,0.00023319,7]
[393529331,1762770646922,-151.0,0.00023319,7]
[393529332,1762770646931,-619.15661723,0.00023321,2]
[393529333,1762770646940,-379.80723679,0.00023321,2]
[393529334,1762770646950,-19935.0016378,0.00023329,2]
[393529335,1762770646959,-151.0,0.00023329,7]
[393529336,1762770646968,-151.0,0.00023329,7]
[393529337,1762770646977,-151.0,0.00023329,7]
[393529338,1762770646987,-2083.9471748,0.00023329,2]
[393529339,1762770646996,-151.0,0.00023329,7]
[393529340,1762770647005,-151.0,0.00023329,7]
[393529341,1762770647016,-151.0,0.00023329,7]
[393529342,1762770647029,-151.0,0.00023329,7]
[393529343,1762770647038,-151.0,0.00023329,7]
[393529344,1762770647047,-151.0,0.00023329,7]
[393529345,1762770647058,-151.0,0.00023329,7]
[393529346,1762770647067,-151.0,0.00023329,7]
[393529347,1762770647077,-215.11053306,0.00023329,7]
[393529348,1762770647087,-151.0,0.00023329,7]
[393529349,1762770647099,-151.0,0.00023329,7]
[393529350,1762770647108,-151.0,0.00023329,7]
[393529351,1762770647118,-151.0,0.00023329,7]
[393529352,1762770647127,-500.0,0.00023343,2]
[393529353,1762770647136,-312.0,0.00023359,2]
[393529354,1762770647230,-197.387997,0.00023369,10]
[393529355,1762770647239,-527.21110654,0.00023398,2]
[393529356,1762770647249,-1018.431907,0.000234,2]
[393529357,1762770647262,-685.23565611,0.00023431,2]
[393529358,1762770647272,-312.0,0.00023448,2]
[393529359,1762770647281,-312.0,0.0002347,2]
[393529360,1762770647291,-197.387997,0.00023488,3]
[393529361,1762770647300,-312.0,0.00023551,2]
[393529362,1762770647310,-312.0,0.0002359,2]
[393529363,1762770647320,-197.387997,0.00023591,3]
[393529364,1762770647329,-197.387997,0.00023628,2]
[393529365,1762770647339,-151.0,0.00023648,7]
[393529366,1762770647348,-151.0,0.00023648,7]
[393529367,1762770647358,-151.0,0.00023648,7]
[393529368,1762770647367,-312.0,0.00023657,2]
[393529369,1762770647376,-197.387997,0.00023694,3]
[393529370,1762770647386,-810.73,0.00023718,3]
[393529371,1762770647395,-151.0,0.00023738,7]
[393529372,1762770647404,-151.0,0.00023738,7]
[393529373,1762770647413,-151.0,0.00023738,7]
[393529374,1762770647422,-151.0,0.00023738,7]
[393529375,1762770647432,-500.0,0.00023773,2]
[393529376,1762770647441,-263.90423775,0.00023773,2]
[393529377,1762770647451,-500.0,0.00023773,2]
[393529378,1762770647460,-500.51415149,0.00023773,2]
[393529379,1762770647469,-501.9660549,0.00023773,2]
[393529380,1762770647479,-500.0,0.00023773,2]
[393529381,1762770647488,-500.0,0.00023773,2]
[393529382,1762770647497,-500.0,0.00023773,2]
[393529383,1762770647506,-500.0,0.00023773,2]
[393529384,1762770647515,-500.0,0.00023773,2]
[393529385,1762770647524,-500.0,0.00023773,2]
[393529386,1762770647533,-500.0,0.00023773,2]
[393529387,1762770647542,-500.0,0.00023773,2]
[393529388,1762770647551,-154.99123392,0.00023773,2]
[393529389,1762770647560,-500.0,0.00023773,2]
[393529390,1762770647569,-506.46717792,0.00023773,2]
[393529391,1762770647578,-377.40504208,0.00023773,2]
[393529392,1762770647587,-500.0,0.00023773,2]
[393529393,1762770647598,-500.0,0.00023773,2]
[393529394,1762770647607,-300.0086418,0.00023781,2]
[393529395,1762770647616,-300.0086418,0.00023781,2]
[393529396,1762770647625,-597.5627379,0.00023781,2]
[393529397,1762770647634,-300.0086418,0.00023781,2]
[393529398,1762770647644,-300.0086418,0.00023781,2]
[393529399,1762770647654,-300.0804932,0.00023781,2]
[393529400,1762770647663,-197.387997,0.00023798,3]
[393529401,1762770647673,-442.3,0.000238,7]
[393529402,1762770647681,-523.06834137,0.00023821,2]
[393529403,1762770647690,-1000.0,0.00023821,2]
[393529404,1762770647699,-1000.0,0.00023821,2]
[393529405,1762770647708,-500.0,0.00023821,2]
[393529406,1762770647717,-1000.0,0.00023821,2]
[393529407,1762770647727,-1000.0,0.00023821,2]
[393529408,1762770647736,-83653.490648,0.0002384,2]
[393529409,1762770647745,-550.98884456,0.00023841,2]
[393529410,1762770647755,-312.0,0.0002387,2]
[393529411,1762770647763,-500.0,0.00023873,2]
[393529412,1762770647772,-197.387997,0.00023876,10]
[393529413,1762770647782,-997.54789403,0.00023892,2]
[393529414,1762770647791,-150.0,0.000239,2]
[393529415,1762770647800,-1000.0,0.000239,2]
[393529416,1762770647809,-197.387997,0.00023901,3]
[393529417,1762770647818,-9312.17545777,0.0002399,2]
[393529418,1762770647827,-312.0,0.00023997,2]
[393529419,1762770647837,-502.24138859,0.00024009,2]
[393529420,1762770647846,-500.0,0.00024009,2]
[393529421,1762770647855,-500.0,0.00024009,2]
[393529422,1762770647864,-592.8099389,0.00024027,2]
[393529423,1762770647874,-312.0,0.00024037,2]
[393529424,1762770647883,-160.0,0.00024043,2]
[393529425,1762770647892,-500.0,0.00024082,2]
[393529426,1762770647901,-500.0,0.00024082,2]
[393529427,1762770647910,-500.0,0.00024082,2]
[393529428,1762770647920,-500.0,0.00024082,2]
[393529429,1762770647930,-500.0,0.00024082,2]
[393529430,1762770647939,-500.0,0.00024082,2]
[393529431,1762770647949,-500.0,0.00024082,2]
[393529432,1762770647959,-333.47248786,0.00024082,2]
[393529433,1762770647968,-312.0,0.00024107,2]
[393529434,1762770647977,-12107.49627969,0.00024142,2]
[393529435,1762770647987,-197.387997,0.00024264,2]
[393529436,1762770647996,-248.79703428,0.00024267,2]
[393529437,1762770648005,-312.0,0.00024277,2]
[393529438,1762770648019,-713.28,0.000243,14]
[393529439,1762770648029,-151.0,0.000243,7]
[393529440,1762770648039,-500.0,0.00024321,2]
[393529441,1762770648048,-517.70334212,0.00024321,2]